[Event "*** Titled Tuesday Blitz"]
[Site "Chess.com"]
[Date "2019.12.03"]
[Round "5"]
[White "Manukyan_Artak"]
[Black "arminmusovic"]
[Result "0-1"]
[WhiteElo "2344"]
[BlackElo "2548"]
[TimeControl "180+2"]
[EndTime "14:06:18 PST"]
[Termination "arminmusovic won by resignation"]

1. e4 {[%clk 0:03:01.9]} 1... c6 {[%clk 0:03:01]} 2. d4 {[%clk 0:03:03]} 2... d5
{[%clk 0:03:02.9]} 3. e5 {[%clk 0:03:04.4]} 3... c5 {[%clk 0:03:04.2]} 4. dxc5
{[%clk 0:03:05.2]} 4... Nc6 {[%clk 0:03:05.4]} 5. Bb5 {[%clk 0:03:01.9]} 5...
Nh6 {[%clk 0:03:05.6]} 6. Bxh6 {[%clk 0:02:58]} 6... gxh6 {[%clk 0:03:07.5]} 7.
f4 {[%clk 0:02:56.8]} 7... Rg8 {[%clk 0:03:06]} 8. Qe2 {[%clk 0:02:43.7]} 8...
Bg4 {[%clk 0:03:02.3]} 9. Nf3 {[%clk 0:02:42.6]} 9... e6 {[%clk 0:03:03.7]} 10.
Nc3 {[%clk 0:02:35]} 10... Bxc5 {[%clk 0:03:00.8]} 11. O-O-O {[%clk 0:02:36]}
11... Qa5 {[%clk 0:03:00]} 12. h3 {[%clk 0:02:22]} 12... Bxf3 {[%clk 0:02:56.5]}
13. Qxf3 {[%clk 0:02:22.7]} 13... Bb4 {[%clk 0:02:47.7]} 14. g4 {[%clk
0:02:02.8]} 14... Bxc3 {[%clk 0:02:43.5]} 15. Bxc6+ {[%clk 0:02:02.8]} 15...
bxc6 {[%clk 0:02:44.5]} 16. Qxc3 {[%clk 0:02:04.3]} 16... Qxc3 {[%clk
0:02:31.3]} 17. bxc3 {[%clk 0:02:06.2]} 17... Rb8 {[%clk 0:02:31.7]} 18. Rd4
{[%clk 0:02:04]} 18... Kd7 {[%clk 0:02:24.8]} 19. Ra4 {[%clk 0:01:43.9]} 19...
Rb7 {[%clk 0:02:23.1]} 20. Kd2 {[%clk 0:01:44.9]} 20... h5 {[%clk 0:02:06.8]}
21. g5 {[%clk 0:01:44.6]} 21... Ra8 {[%clk 0:01:57.1]} 22. Rd1 {[%clk
0:01:33.8]} 22... a5 {[%clk 0:01:54.9]} 23. c4 {[%clk 0:01:16]} 23... Rb4 {[%clk
0:01:53.5]} 24. Rxb4 {[%clk 0:01:16.1]} 24... axb4 {[%clk 0:01:55.4]} 25. cxd5
{[%clk 0:01:17.6]} 25... exd5 {[%clk 0:01:54.1]} 26. Ra1 {[%clk 0:01:14.9]}
26... Ke6 {[%clk 0:01:50.2]} 27. h4 {[%clk 0:00:46.7]} 27... c5 {[%clk 0:01:44]}
28. c3 {[%clk 0:00:43]} 28... b3 {[%clk 0:01:40]} 29. a4 {[%clk 0:00:39.4]}
29... Kf5 {[%clk 0:01:38.9]} 30. Kc1 {[%clk 0:00:26.6]} 30... Kxf4 {[%clk
0:01:24.9]} 31. Kb2 {[%clk 0:00:27.4]} 31... c4 {[%clk 0:01:23.8]} 32. a5 {[%clk
0:00:22.8]} 32... Ra6 {[%clk 0:01:20.2]} 33. Rf1+ {[%clk 0:00:20.3]} 33... Kxe5
{[%clk 0:01:21.6]} 34. Rxf7 {[%clk 0:00:21.2]} 34... Rxa5 {[%clk 0:01:22.7]} 35.
Rxh7 {[%clk 0:00:22.7]} 35... Ra2+ {[%clk 0:01:24]} 36. Kb1 {[%clk 0:00:23.8]}
36... Ke4 {[%clk 0:01:25.2]} 37. Rf7 {[%clk 0:00:20.4]} 37... Rg2 {[%clk
0:01:24.6]} 38. Rf6 {[%clk 0:00:19.5]} 38... d4 {[%clk 0:01:23.7]} 39. cxd4
{[%clk 0:00:18.5]} 39... Kxd4 {[%clk 0:01:25.6]} 40. Rf4+ {[%clk 0:00:19.2]}
40... Kc3 {[%clk 0:01:26.8]} 41. Rf3+ {[%clk 0:00:20.4]} 41... Kb4 {[%clk
0:01:28.3]} 42. Rf4 {[%clk 0:00:21.8]} 42... Ka3 {[%clk 0:01:16.3]} 43. Rxc4
{[%clk 0:00:21.5]} 43... Rh2 {[%clk 0:01:07.2]} 44. Rc1 {[%clk 0:00:19.3]} 44...
Rxh4 {[%clk 0:01:03]} 45. Rg1 {[%clk 0:00:20.2]} 45... Re4 {[%clk 0:00:56.9]}
46. g6 {[%clk 0:00:21]} 46... Re8 {[%clk 0:00:58.8]} 47. g7 {[%clk 0:00:18.1]}
47... Rg8 {[%clk 0:01:00.1]} 48. Kc1 {[%clk 0:00:16.1]} 48... h4 {[%clk
0:00:59]} 49. Kd2 {[%clk 0:00:16.6]} 49... h3 {[%clk 0:00:59.6]} 50. Kc3 {[%clk
0:00:14.5]} 50... Rc8+ {[%clk 0:00:59.2]} 51. Kd4 {[%clk 0:00:15.1]} 51... h2
{[%clk 0:01:00.6]} 52. Ra1+ {[%clk 0:00:14.3]} 52... Kb4 {[%clk 0:01:00.5]} 53.
Rh1 {[%clk 0:00:14.4]} 53... Rg8 {[%clk 0:01:01.1]} 54. Rxh2 {[%clk 0:00:15.4]}
54... Rxg7 {[%clk 0:01:02.6]} 55. Rh6 {[%clk 0:00:15.9]} 55... Rd7+ {[%clk
0:01:03.4]} 56. Ke3 {[%clk 0:00:17]} 56... Kc3 {[%clk 0:01:04.2]} 57. Rc6+
{[%clk 0:00:18.1]} 57... Kb2 {[%clk 0:01:05.6]} 58. Ke2 {[%clk 0:00:19.2]} 58...
Ka2 {[%clk 0:01:06.4]} 59. Ra6+ {[%clk 0:00:20.4]} 59... Kb1 {[%clk 0:01:07.5]}
60. Rd6 {[%clk 0:00:21.5]} 60... Rxd6 {[%clk 0:01:08.1]} 0-1

[Event "*** Titled Tuesday Blitz"]
[Site "Chess.com"]
[Date "2019.12.03"]
[Round "5"]
[White "ChainsOfFantasia"]
[Black "piscatorox"]
[Result "0-1"]
[WhiteElo "2507"]
[BlackElo "2265"]
[TimeControl "180+2"]
[EndTime "14:06:19 PST"]
[Termination "piscatorox won by checkmate"]

1. d4 {[%clk 0:03:01.9]} 1... Nf6 {[%clk 0:03:00.2]} 2. Nf3 {[%clk 0:02:57.6]}
2... g6 {[%clk 0:03:01.1]} 3. c4 {[%clk 0:02:59.1]} 3... Bg7 {[%clk 0:03:01.1]}
4. Nc3 {[%clk 0:03:00.8]} 4... d6 {[%clk 0:03:01.9]} 5. e4 {[%clk 0:03:01.6]}
5... O-O {[%clk 0:03:03.4]} 6. Be2 {[%clk 0:03:03.5]} 6... e5 {[%clk 0:03:04.3]}
7. O-O {[%clk 0:03:05.4]} 7... Nc6 {[%clk 0:03:05.3]} 8. d5 {[%clk 0:03:06.7]}
8... Ne7 {[%clk 0:03:06.2]} 9. Ne1 {[%clk 0:03:08.3]} 9... Nd7 {[%clk
0:03:06.4]} 10. Nd3 {[%clk 0:03:10]} 10... f5 {[%clk 0:03:05.7]} 11. f3 {[%clk
0:03:11.6]} 11... f4 {[%clk 0:03:03.9]} 12. Bd2 {[%clk 0:03:13.1]} 12... g5
{[%clk 0:03:03.2]} 13. Rc1 {[%clk 0:03:14.5]} 13... Ng6 {[%clk 0:02:59.9]} 14.
c5 {[%clk 0:03:15.2]} 14... Nxc5 {[%clk 0:02:49.3]} 15. Nxc5 {[%clk 0:03:15.5]}
15... dxc5 {[%clk 0:02:50.4]} 16. Na4 {[%clk 0:03:11.9]} 16... b6 {[%clk
0:02:10.6]} 17. b4 {[%clk 0:03:00.8]} 17... cxb4 {[%clk 0:02:05.9]} 18. Bxb4
{[%clk 0:03:02.7]} 18... Rf7 {[%clk 0:02:05]} 19. Bc4 {[%clk 0:02:42.6]} 19...
b5 {[%clk 0:01:56.2]} 20. Bxb5 {[%clk 0:02:39.3]} 20... Rb8 {[%clk 0:01:57]} 21.
Qd3 {[%clk 0:01:57.7]} 21... a6 {[%clk 0:01:56.8]} 22. Bxa6 {[%clk 0:01:55.7]}
22... Bxa6 {[%clk 0:01:48]} 23. Qxa6 {[%clk 0:01:57.6]} 23... Rxb4 {[%clk
0:01:48.7]} 24. Nc5 {[%clk 0:01:54]} 24... Rb6 {[%clk 0:01:37.3]} 25. Qc4 {[%clk
0:01:50.7]} 25... Nf8 {[%clk 0:01:30.8]} 26. a4 {[%clk 0:01:51.2]} 26... Qa8
{[%clk 0:01:21.3]} 27. Rb1 {[%clk 0:01:44.4]} 27... Qa7 {[%clk 0:01:20.9]} 28.
Kh1 {[%clk 0:01:43.7]} 28... Bf6 {[%clk 0:01:04.4]} 29. h3 {[%clk 0:01:42.5]}
29... Be7 {[%clk 0:01:03.8]} 30. Nd3 {[%clk 0:01:43.7]} 30... Bd6 {[%clk
0:01:03.9]} 31. Ra1 {[%clk 0:01:31]} 31... Rd7 {[%clk 0:01:03.5]} 32. a5 {[%clk
0:01:31.4]} 32... Rb7 {[%clk 0:01:00.2]} 33. a6 {[%clk 0:01:21]} 33... Rb6
{[%clk 0:01:00.8]} 34. Rfb1 {[%clk 0:01:22.4]} 34... Rd8 {[%clk 0:01:00]} 35.
Rxb6 {[%clk 0:01:21.6]} 35... Qxb6 {[%clk 0:00:59.2]} 36. Ra4 {[%clk 0:00:53.2]}
36... Rb8 {[%clk 0:00:47.2]} 37. Kh2 {[%clk 0:00:53.5]} 37... Nd7 {[%clk
0:00:46.8]} 38. Qc2 {[%clk 0:00:41.4]} 38... Ra8 {[%clk 0:00:37]} 39. Qc4 {[%clk
0:00:41.4]} 39... Nc5 {[%clk 0:00:34.7]} 40. Ra2 {[%clk 0:00:34.2]} 40... Rxa6
{[%clk 0:00:19.5]} 41. Rb2 {[%clk 0:00:29.2]} 41... Qa7 {[%clk 0:00:20.1]} 42.
Qb5 {[%clk 0:00:20]} 42... Nxd3 {[%clk 0:00:19.3]} 43. Qe8+ {[%clk 0:00:21]}
43... Kg7 {[%clk 0:00:20]} 44. Rb8 {[%clk 0:00:22]} 44... Bc5 {[%clk 0:00:13.8]}
45. h4 {[%clk 0:00:17.2]} 45... Bg1+ {[%clk 0:00:11.6]} 46. Kh3 {[%clk
0:00:17.1]} 46... Nf2# {[%clk 0:00:12.6]} 0-1

[Event "*** Titled Tuesday Blitz"]
[Site "Chess.com"]
[Date "2019.12.03"]
[Round "5"]
[White "MPGM"]
[Black "MFBerna"]
[Result "1-0"]
[WhiteElo "2571"]
[BlackElo "2351"]
[TimeControl "180+2"]
[EndTime "14:06:19 PST"]
[Termination "MPGM won by resignation"]

1. d4 {[%clk 0:03:01.9]} 1... Nf6 {[%clk 0:03:00.8]} 2. c4 {[%clk 0:03:00.7]}
2... e6 {[%clk 0:03:01.9]} 3. Nf3 {[%clk 0:03:00.3]} 3... c5 {[%clk 0:03:03]} 4.
e3 {[%clk 0:02:55.2]} 4... cxd4 {[%clk 0:03:04.3]} 5. exd4 {[%clk 0:02:55]} 5...
d5 {[%clk 0:03:06.2]} 6. Nc3 {[%clk 0:02:54.3]} 6... Nc6 {[%clk 0:03:06.7]} 7.
c5 {[%clk 0:02:51.5]} 7... Be7 {[%clk 0:03:07.5]} 8. Bd3 {[%clk 0:02:47.6]} 8...
O-O {[%clk 0:03:08.7]} 9. a3 {[%clk 0:02:46.5]} 9... b6 {[%clk 0:03:06.4]} 10.
b4 {[%clk 0:02:47.1]} 10... a5 {[%clk 0:03:03.1]} 11. b5 {[%clk 0:02:28.6]}
11... Nxd4 {[%clk 0:02:46.4]} 12. Nxd4 {[%clk 0:02:27.7]} 12... Bxc5 {[%clk
0:02:47.9]} 13. Nc6 {[%clk 0:02:27.1]} 13... Qd6 {[%clk 0:02:47.7]} 14. O-O
{[%clk 0:02:26.6]} 14... e5 {[%clk 0:02:48.4]} 15. Be2 {[%clk 0:02:19.8]} 15...
Bb7 {[%clk 0:02:39.1]} 16. Na4 {[%clk 0:02:07.5]} 16... Bxc6 {[%clk 0:02:39.6]}
17. bxc6 {[%clk 0:02:08]} 17... Bd4 {[%clk 0:02:38.4]} 18. Bb2 {[%clk
0:02:06.9]} 18... Bxb2 {[%clk 0:02:37.4]} 19. Nxb2 {[%clk 0:02:06.4]} 19... Qxc6
{[%clk 0:02:31.3]} 20. Nd3 {[%clk 0:02:05.7]} 20... Qd6 {[%clk 0:02:21.8]} 21.
a4 {[%clk 0:01:30.6]} 21... e4 {[%clk 0:02:21]} 22. Ne1 {[%clk 0:01:25.2]} 22...
d4 {[%clk 0:02:18.2]} 23. Bb5 {[%clk 0:01:20.3]} 23... Rfd8 {[%clk 0:02:12.6]}
24. Nc2 {[%clk 0:01:20.8]} 24... Qe5 {[%clk 0:02:06.3]} 25. Re1 {[%clk
0:01:14.9]} 25... Rac8 {[%clk 0:01:57.8]} 26. Na3 {[%clk 0:01:10.7]} 26... e3
{[%clk 0:01:55.3]} 27. fxe3 {[%clk 0:01:09.7]} 27... dxe3 {[%clk 0:01:54.3]} 28.
Qf3 {[%clk 0:01:09.9]} 28... Rc3 {[%clk 0:01:32.5]} 29. Nc4 {[%clk 0:01:06.2]}
29... Qd4 {[%clk 0:01:28.2]} 30. Rad1 {[%clk 0:01:04.3]} 30... Rd3 {[%clk
0:00:58.3]} 31. Rxd3 {[%clk 0:00:56.6]} 31... Qxd3 {[%clk 0:01:00.2]} 32. Qxe3
{[%clk 0:00:54.9]} 32... Qc2 {[%clk 0:00:59.5]} 33. Qe2 {[%clk 0:00:45.7]} 33...
Qc3 {[%clk 0:00:53.2]} 34. Ne5 {[%clk 0:00:42.7]} 34... Rd2 {[%clk 0:00:45.2]}
35. Qe3 {[%clk 0:00:39.4]} 35... Qb2 {[%clk 0:00:36.8]} 36. Bc6 {[%clk
0:00:24.4]} 36... h5 {[%clk 0:00:31]} 37. Nc4 {[%clk 0:00:20.3]} 37... Qc2
{[%clk 0:00:26.1]} 38. Nxd2 {[%clk 0:00:19.8]} 38... Qxc6 {[%clk 0:00:27.1]} 39.
h3 {[%clk 0:00:20.6]} 39... Qxa4 {[%clk 0:00:28]} 40. Nf3 {[%clk 0:00:19.7]}
40... Qb4 {[%clk 0:00:27.1]} 41. Rd1 {[%clk 0:00:17.5]} 41... g6 {[%clk
0:00:24.2]} 42. Qd4 {[%clk 0:00:17.7]} 42... Qxd4+ {[%clk 0:00:23.7]} 43. Nxd4
{[%clk 0:00:19.6]} 43... Ne4 {[%clk 0:00:25]} 44. Rb1 {[%clk 0:00:19.3]} 44...
a4 {[%clk 0:00:22.9]} 45. Rxb6 {[%clk 0:00:20.2]} 45... a3 {[%clk 0:00:24.3]}
46. Ra6 {[%clk 0:00:21.3]} 1-0

[Event "*** Titled Tuesday Blitz"]
[Site "Chess.com"]
[Date "2019.12.03"]
[Round "5"]
[White "Olga_Zhuravleva"]
[Black "Qvalda"]
[Result "1/2-1/2"]
[WhiteElo "2250"]
[BlackElo "2512"]
[TimeControl "180+2"]
[EndTime "14:06:29 PST"]
[Termination "Game drawn by repetition"]

1. e4 {[%clk 0:03:01.9]} 1... d5 {[%clk 0:02:58.1]} 2. exd5 {[%clk 0:03:02.5]}
2... Qxd5 {[%clk 0:02:59.5]} 3. Nc3 {[%clk 0:03:03.1]} 3... Qd8 {[%clk
0:03:00.5]} 4. d4 {[%clk 0:03:04.1]} 4... Nf6 {[%clk 0:03:01.8]} 5. Nf3 {[%clk
0:03:05.2]} 5... g6 {[%clk 0:03:02]} 6. Bf4 {[%clk 0:03:03.2]} 6... Bg7 {[%clk
0:03:03.3]} 7. Qd2 {[%clk 0:03:02.6]} 7... O-O {[%clk 0:02:47.8]} 8. O-O-O
{[%clk 0:03:01.7]} 8... Bg4 {[%clk 0:02:40.6]} 9. Be2 {[%clk 0:03:00.4]} 9... c5
{[%clk 0:02:37]} 10. d5 {[%clk 0:02:42.7]} 10... Qa5 {[%clk 0:02:33.2]} 11. Kb1
{[%clk 0:02:36]} 11... Nbd7 {[%clk 0:02:22.3]} 12. h3 {[%clk 0:02:35.9]} 12...
Bxf3 {[%clk 0:02:21.7]} 13. Bxf3 {[%clk 0:02:36.4]} 13... b5 {[%clk 0:01:38]}
14. d6 {[%clk 0:02:31.1]} 14... b4 {[%clk 0:01:39.4]} 15. Nd5 {[%clk 0:02:23.9]}
15... Nxd5 {[%clk 0:01:23.2]} 16. Bxd5 {[%clk 0:02:22.8]} 16... e5 {[%clk
0:01:15.5]} 17. Bxa8 {[%clk 0:02:11.4]} 17... exf4 {[%clk 0:01:16.6]} 18. Bd5
{[%clk 0:02:07.3]} 18... Nb6 {[%clk 0:01:08.3]} 19. Qxf4 {[%clk 0:01:45.4]}
19... Na4 {[%clk 0:00:46.2]} 20. d7 {[%clk 0:01:42.5]} 20... Nxb2 {[%clk
0:00:13.5]} 21. Qxf7+ {[%clk 0:00:50.3]} 21... Kh8 {[%clk 0:00:11.6]} 22. Bb3
{[%clk 0:00:43.4]} 22... Nxd1 {[%clk 0:00:09.7]} 23. Rxd1 {[%clk 0:00:43]} 23...
Rxf7 {[%clk 0:00:04.8]} 24. d8=Q+ {[%clk 0:00:35.3]} 24... Qxd8 {[%clk
0:00:05.8]} 25. Rxd8+ {[%clk 0:00:36.3]} 25... Rf8 {[%clk 0:00:07.5]} 26. Rxf8+
{[%clk 0:00:33.3]} 26... Bxf8 {[%clk 0:00:08.5]} 27. Kc1 {[%clk 0:00:34.5]}
27... Kg7 {[%clk 0:00:09.8]} 28. Kd2 {[%clk 0:00:35.3]} 28... Kf6 {[%clk
0:00:11.1]} 29. Kd3 {[%clk 0:00:33.9]} 29... Ke5 {[%clk 0:00:12.2]} 30. Kc4
{[%clk 0:00:33.3]} 30... Ke4 {[%clk 0:00:11.3]} 31. Kb5 {[%clk 0:00:33.2]} 31...
Kd4 {[%clk 0:00:11.6]} 32. Bg8 {[%clk 0:00:27.4]} 32... h6 {[%clk 0:00:12.3]}
33. Bf7 {[%clk 0:00:26.8]} 33... g5 {[%clk 0:00:13.4]} 34. Be6 {[%clk
0:00:27.6]} 34... Kc3 {[%clk 0:00:13.9]} 35. Bb3 {[%clk 0:00:24.5]} 35... Be7
{[%clk 0:00:11.8]} 36. Kc6 {[%clk 0:00:15.4]} 36... c4 {[%clk 0:00:12.3]} 37.
Ba4 {[%clk 0:00:16.6]} 37... Kb2 {[%clk 0:00:12.7]} 38. Kd5 {[%clk 0:00:16.4]}
38... Kxa2 {[%clk 0:00:11.2]} 39. Kxc4 {[%clk 0:00:17.2]} 39... Ka3 {[%clk
0:00:11.9]} 40. Bb3 {[%clk 0:00:18.8]} 40... a5 {[%clk 0:00:12.9]} 41. Kb5
{[%clk 0:00:20.4]} 41... Bd8 {[%clk 0:00:13]} 42. g3 {[%clk 0:00:21.8]} 42...
Kb2 {[%clk 0:00:13.4]} 43. f4 {[%clk 0:00:22.8]} 43... gxf4 {[%clk 0:00:13.8]}
44. gxf4 {[%clk 0:00:24.2]} 44... Kc3 {[%clk 0:00:13.2]} 45. Kc5 {[%clk
0:00:25.5]} 45... Kb2 {[%clk 0:00:09.1]} 46. f5 {[%clk 0:00:25.2]} 46... Ka3
{[%clk 0:00:09.9]} 47. Kb5 {[%clk 0:00:26]} 47... Kb2 {[%clk 0:00:09]} 48. Kc4
{[%clk 0:00:26.7]} 48... Ka3 {[%clk 0:00:10]} 49. Kb5 {[%clk 0:00:27.1]} 49...
Kb2 {[%clk 0:00:10.2]} 50. Kc4 {[%clk 0:00:25.8]} 50... Ka3 {[%clk 0:00:11.3]}
51. Kb5 {[%clk 0:00:26.7]} 1/2-1/2

[Event "*** Titled Tuesday Blitz"]
[Site "Chess.com"]
[Date "2019.12.03"]
[Round "5"]
[White "Kawhi_Leonard2"]
[Black "NeverEverForever1990"]
[Result "1/2-1/2"]
[WhiteElo "2283"]
[BlackElo "2405"]
[TimeControl "180+2"]
[EndTime "14:06:43 PST"]
[Termination "Game drawn by repetition"]

1. e4 {[%clk 0:03:01.9]} 1... g6 {[%clk 0:03:01.9]} 2. d4 {[%clk 0:03:02.3]}
2... Bg7 {[%clk 0:02:59.8]} 3. Nc3 {[%clk 0:03:03.8]} 3... d6 {[%clk 0:02:56.6]}
4. Be3 {[%clk 0:03:04.5]} 4... a6 {[%clk 0:02:57.6]} 5. Qd2 {[%clk 0:03:05.4]}
5... b5 {[%clk 0:02:58.2]} 6. Bd3 {[%clk 0:03:05]} 6... Nd7 {[%clk 0:02:58.8]}
7. Nf3 {[%clk 0:03:04.9]} 7... Bb7 {[%clk 0:02:59.5]} 8. a4 {[%clk 0:03:00.1]}
8... b4 {[%clk 0:02:50.1]} 9. Ne2 {[%clk 0:03:01]} 9... Ngf6 {[%clk 0:02:49.5]}
10. Ng3 {[%clk 0:03:01]} 10... a5 {[%clk 0:02:45.8]} 11. Bh6 {[%clk 0:03:00.2]}
11... Bxh6 {[%clk 0:02:42.9]} 12. Qxh6 {[%clk 0:03:00.2]} 12... c5 {[%clk
0:02:44.3]} 13. e5 {[%clk 0:02:59.2]} 13... Bxf3 {[%clk 0:02:35.5]} 14. exf6
{[%clk 0:02:56.6]} 14... Bxg2 {[%clk 0:02:30.2]} 15. Rg1 {[%clk 0:02:56.4]}
15... Bd5 {[%clk 0:02:30.9]} 16. Qg7 {[%clk 0:02:52.1]} 16... Rf8 {[%clk
0:02:31.1]} 17. fxe7 {[%clk 0:02:24.1]} 17... Qxe7+ {[%clk 0:02:31.2]} 18. Kf1
{[%clk 0:02:25.3]} 18... O-O-O {[%clk 0:02:25.1]} 19. Re1 {[%clk 0:02:17.9]}
19... Qf6 {[%clk 0:02:23.8]} 20. Qxf6 {[%clk 0:02:04.6]} 20... Nxf6 {[%clk
0:02:25.7]} 21. dxc5 {[%clk 0:02:05.1]} 21... dxc5 {[%clk 0:02:21.8]} 22. Bb5
{[%clk 0:01:39.2]} 22... Be6 {[%clk 0:02:18.7]} 23. Re5 {[%clk 0:01:34.2]} 23...
Rd5 {[%clk 0:01:53.5]} 24. Rxd5 {[%clk 0:01:08.5]} 24... Bxd5 {[%clk 0:01:47.5]}
25. Ke2 {[%clk 0:01:07.4]} 25... Rd8 {[%clk 0:01:44.8]} 26. h4 {[%clk
0:00:57.7]} 26... Ng4 {[%clk 0:01:39.6]} 27. f3 {[%clk 0:00:50.5]} 27... Ne5
{[%clk 0:01:37.6]} 28. Ne4 {[%clk 0:00:50.4]} 28... Nxf3 {[%clk 0:01:32.9]} 29.
Kxf3 {[%clk 0:00:44.5]} 29... f5 {[%clk 0:01:33.3]} 30. Kf4 {[%clk 0:00:18.8]}
30... Bxe4 {[%clk 0:01:27.4]} 31. c3 {[%clk 0:00:20.7]} 31... bxc3 {[%clk
0:01:26.9]} 32. bxc3 {[%clk 0:00:21.8]} 32... Rd2 {[%clk 0:01:28.4]} 33. h5
{[%clk 0:00:21.4]} 33... Rg2 {[%clk 0:01:18.8]} 34. Rd1 {[%clk 0:00:13.5]} 34...
gxh5 {[%clk 0:01:11.2]} 35. Ke5 {[%clk 0:00:11.6]} 35... h4 {[%clk 0:01:09.9]}
36. Rd7 {[%clk 0:00:04.8]} 36... Re2 {[%clk 0:00:46.6]} 37. Rg7 {[%clk
0:00:02.2]} 37... Bd3+ {[%clk 0:00:41.9]} 38. Kd6 {[%clk 0:00:04.1]} 38... Bxb5
{[%clk 0:00:38.5]} 39. axb5 {[%clk 0:00:05.4]} 39... h3 {[%clk 0:00:33.8]} 40.
Rxh7 {[%clk 0:00:05.3]} 40... h2 {[%clk 0:00:33.1]} 41. b6 {[%clk 0:00:06.2]}
41... Kb8 {[%clk 0:00:25.9]} 42. Kxc5 {[%clk 0:00:02.9]} 42... f4 {[%clk
0:00:13.1]} 43. Kc6 {[%clk 0:00:04.3]} 43... Re6+ {[%clk 0:00:13.7]} 44. Kc5
{[%clk 0:00:05.6]} 44... Re5+ {[%clk 0:00:12.9]} 45. Kc6 {[%clk 0:00:06.4]}
45... Re6+ {[%clk 0:00:12.8]} 46. Kc5 {[%clk 0:00:07.7]} 46... f3 {[%clk
0:00:13]} 47. Rxh2 {[%clk 0:00:07.5]} 47... Rf6 {[%clk 0:00:13.9]} 48. Rh8+
{[%clk 0:00:06.7]} 48... Kb7 {[%clk 0:00:14.8]} 49. Rh7+ {[%clk 0:00:08.6]}
49... Kc8 {[%clk 0:00:15.6]} 50. Rh8+ {[%clk 0:00:09.6]} 50... Kb7 {[%clk
0:00:11.5]} 51. Rh7+ {[%clk 0:00:10.8]} 51... Kb8 {[%clk 0:00:09.3]} 52. Rh8+
{[%clk 0:00:12.1]} 52... Kb7 {[%clk 0:00:10.4]} 1/2-1/2

[Event "*** Titled Tuesday Blitz"]
[Site "Chess.com"]
[Date "2019.12.03"]
[Round "5"]
[White "Kildepiotr"]
[Black "HiHaruka"]
[Result "1-0"]
[WhiteElo "2531"]
[BlackElo "2304"]
[TimeControl "180+2"]
[EndTime "14:06:51 PST"]
[Termination "Kildepiotr won on time"]

1. Nf3 {[%clk 0:03:01.3]} 1... b6 {[%clk 0:02:59]} 2. g3 {[%clk 0:03:02.7]} 2...
Bb7 {[%clk 0:02:59.3]} 3. Bg2 {[%clk 0:03:04.4]} 3... Nf6 {[%clk 0:02:59.7]} 4.
O-O {[%clk 0:03:05.9]} 4... d6 {[%clk 0:02:53.4]} 5. c4 {[%clk 0:03:04.4]} 5...
e5 {[%clk 0:02:53.3]} 6. d3 {[%clk 0:03:05.2]} 6... Be7 {[%clk 0:02:53.8]} 7.
Nc3 {[%clk 0:03:06.5]} 7... O-O {[%clk 0:02:53.3]} 8. e4 {[%clk 0:03:07.6]} 8...
Nbd7 {[%clk 0:02:45.3]} 9. Ne1 {[%clk 0:03:08]} 9... Ne8 {[%clk 0:02:44.3]} 10.
f4 {[%clk 0:03:08.6]} 10... f5 {[%clk 0:02:43.5]} 11. exf5 {[%clk 0:03:07.1]}
11... Bxg2 {[%clk 0:02:43.3]} 12. Nxg2 {[%clk 0:03:08.5]} 12... Rxf5 {[%clk
0:02:31.2]} 13. Ne3 {[%clk 0:03:09.2]} 13... Rf8 {[%clk 0:02:28.9]} 14. f5
{[%clk 0:03:10.4]} 14... Bg5 {[%clk 0:02:25.3]} 15. Ned5 {[%clk 0:03:09.4]}
15... c6 {[%clk 0:02:17.6]} 16. Nb4 {[%clk 0:03:05.7]} 16... Rc8 {[%clk
0:02:11.2]} 17. Qf3 {[%clk 0:03:05.8]} 17... Nb8 {[%clk 0:01:42.2]} 18. Bxg5
{[%clk 0:02:57.9]} 18... Qxg5 {[%clk 0:01:44.1]} 19. Ne4 {[%clk 0:02:59]} 19...
Qe7 {[%clk 0:01:27]} 20. Qg4 {[%clk 0:02:56.8]} 20... Nf6 {[%clk 0:01:25.9]} 21.
Nxf6+ {[%clk 0:02:45.1]} 21... Rxf6 {[%clk 0:01:26.6]} 22. Nc2 {[%clk
0:02:44.9]} 22... d5 {[%clk 0:01:20.6]} 23. Rae1 {[%clk 0:02:40.6]} 23... Qc5+
{[%clk 0:01:17.7]} 24. Kg2 {[%clk 0:02:39.5]} 24... Nd7 {[%clk 0:01:18.4]} 25.
b3 {[%clk 0:02:31.6]} 25... Rcf8 {[%clk 0:00:59.4]} 26. Ne3 {[%clk 0:02:31.3]}
26... d4 {[%clk 0:00:58.8]} 27. Nd1 {[%clk 0:02:29.2]} 27... Qa3 {[%clk
0:00:54.2]} 28. Re2 {[%clk 0:02:26.6]} 28... b5 {[%clk 0:00:52.2]} 29. Qe4
{[%clk 0:02:19.9]} 29... Nc5 {[%clk 0:00:48.4]} 30. Qxe5 {[%clk 0:02:20.7]}
30... Nxd3 {[%clk 0:00:34.4]} 31. Qxd4 {[%clk 0:02:21.8]} 31... Rd6 {[%clk
0:00:31.3]} 32. Qe4 {[%clk 0:02:14.7]} 32... Nc5 {[%clk 0:00:24.9]} 33. Qe7
{[%clk 0:02:07.5]} 33... Rd7 {[%clk 0:00:25.5]} 34. Qg5 {[%clk 0:02:04.6]} 34...
Rdf7 {[%clk 0:00:21.5]} 35. Ne3 {[%clk 0:01:58.8]} 35... Ne4 {[%clk 0:00:21.4]}
36. Qf4 {[%clk 0:01:56.8]} 36... Nc3 {[%clk 0:00:21.4]} 37. Rd2 {[%clk
0:01:55.6]} 37... bxc4 {[%clk 0:00:17.3]} 38. Nxc4 {[%clk 0:01:55.7]} 38... Qc5
{[%clk 0:00:16.9]} 39. g4 {[%clk 0:01:53.5]} 39... Nd5 {[%clk 0:00:17]} 40. Qd4
{[%clk 0:01:48.6]} 40... Qb4 {[%clk 0:00:13.3]} 41. Re1 {[%clk 0:01:40.3]} 41...
Qb8 {[%clk 0:00:12.2]} 42. Rf2 {[%clk 0:01:32.5]} 42... Rd8 {[%clk 0:00:08.1]}
43. Re6 {[%clk 0:01:28.7]} 43... Nf6 {[%clk 0:00:05.5]} 44. Qf4 {[%clk
0:01:24.5]} 44... Qb7 {[%clk 0:00:05.2]} 45. Nd6 {[%clk 0:01:23]} 45... Qa8
{[%clk 0:00:03]} 46. Nxf7 {[%clk 0:01:23.5]} 46... Kxf7 {[%clk 0:00:04.9]} 47.
Rfe2 {[%clk 0:01:21.3]} 47... c5+ {[%clk 0:00:05.4]} 48. Qf3 {[%clk 0:01:22.2]}
48... Qb8 {[%clk 0:00:06.6]} 49. Re7+ {[%clk 0:01:22.7]} 49... Kf8 {[%clk
0:00:07.4]} 50. h3 {[%clk 0:01:17.7]} 50... Nd5 {[%clk 0:00:07.8]} 51. R7e4
{[%clk 0:01:14]} 51... Qb5 {[%clk 0:00:04.3]} 52. g5 {[%clk 0:01:03.6]} 52...
Qa6 {[%clk 0:00:03.7]} 53. f6 {[%clk 0:00:57.1]} 53... gxf6 {[%clk 0:00:03.7]}
54. Re6 {[%clk 0:00:58.1]} 54... Qb5 {[%clk 0:00:02.5]} 55. Rxf6+ {[%clk
0:00:50.3]} 1-0